[Event "DMP-III LIGA Senior PK 2020"]
[Site "Bystre"]
[Date "2020.07.08"]
[Round "1.16"]
[White "Lach, Tomasz"]
[Black "Wojciechowski, Beniamin"]
[Result "1/2-1/2"]
[ECO "D00"]
[WhiteElo "1833"]
[BlackElo "1835"]
[Annotator "NA RC"]
[PlyCount "131"]
[EventDate "2020.07.05"]
[EventType "team-tourn"]
[EventCountry "POL"]
[SourceTitle "playchess.com"]
[Source "ChessBase"]
[SourceQuality "1"]
[TimeControl "5400+30"]

1. d4 {[%emt 0:00:00]} d5 {[%emt 0:00:00]} 2. Bf4 {[%emt 0:00:00]} Nf6 {[%emt 0:00:10]} 3. e3 {[%emt 0:00:05]} Bf5 {[%emt 0:00:04]} 4. c4 {[%emt 0:01:06]} c6 {[%emt 0:00:28]} 5. Qb3 {[%emt 0:03:34]} Qc8 {[%emt 0:01:24]} 6. Nc3 {[%emt 0:00:46] D10: Slav Defence: 3 cxd5 (without early Nf3) and 3 Nc3.} e6 {[%emt 0:00:14]} 7. Nf3 {[%emt 0:01:02]} Be7 {[%emt 0:04:28]} 8. Be2 {[%emt 0:00:18]} Nbd7 {[%emt 0:00:14]} 9. h3 {[%emt 0:00:38]} h6 {[%emt 0:01:00]} 10. O-O {[%emt 0:00:07]} O-O {[%emt 0:00:49]} 11. Rac1 {[%emt 0:00:41]} Nb6 {[%emt 0:06:32]} 12. Ne5 {[%emt 0:03:25]} Ne4 {[%emt 0:05:44]} 13. Nxe4 {[%emt 0:01:50]} Bxe4 {[%emt 0:00:42]} 14. f3 {[%emt 0:08:06] [#]} dxc4 $146 {[%emt 0:03:02]} ({Predecessor:} 14... Bh7 15. c5 Nd7 16. Nxd7 Qxd7 17. a4 Rfe8 18. Bd3 Bxd3 19. Qxd3 Bf6 20. Be5 Bg5 {0-1 (54) Cisneros,G (2034)-Schuster,C (2265) Vicente Lopez 2016}) 15. Nxc4 {[%emt 0:02:50]} Nxc4 {[%emt 0:00:45]} 16. Bxc4 {[%emt 0:00:27]} Bd5 {[%emt 0:00:19]} 17. e4 {[%emt 0:05:02]} Bxc4 {[%emt 0:00:50]} 18. Rxc4 {[%emt 0:00:26]} Rd8 {[%emt 0:02:24]} 19. Rd1 {[%emt 0:02:35]} Rd7 {[%emt 0:05:16]} 20. Rc3 {[%emt 0:08:04]} Qd8 {[%emt 0:07:57]} 21. Rcd3 {[%emt 0:00:59]} Qb6 {[%emt 0:07:48]} 22. Qxb6 {[%emt 0:10:23]} axb6 {[%emt 0:00:06]} 23. a3 {[%emt 0:00:27]} Rad8 {[%emt 0:11:54]} 24. Kf1 {[%emt 0:03:26]} Bf6 {[%emt 0:02:21]} 25. e5 {[%emt 0:01:50]} Be7 {[%emt 0:00:45]} 26. Ke2 {[%emt 0:00:20]} Ra8 {[%emt 0:03:07]} 27. Be3 {[%emt 0:01:54]} b5 {[%emt 0:00:33]} 28. f4 {[%emt 0:01:41]} Rd5 {[%emt 0:06:56]} 29. g4 {[%emt 0:01:16]} Kh7 {[%emt 0:04:09]} 30. f5 {[%emt 0:07:05]} Rad8 {[%emt 0:02:47]} 31. b4 {[%emt 0:07:52]} R5d7 {[%emt 0:02:53]} 32. fxe6 {[%emt 0:09:28]} fxe6 {[%emt 0:00:11]} 33. Rf1 {[%emt 0:01:44]} Kg8 {[%emt 0:01:32]} 34. Rc3 {[%emt 0:03:21]} Ra8 {[%emt 0:00:28]} 35. Kd3 {[%emt 0:01:29]} Rdd8 {[%emt 0:03:29]} 36. Ke2 {[%emt 0:04:17]} Ra4 {[%emt 0:06:28]} 37. Rd3 {[%emt 0:02:26]} Rf8 {[%emt 0:02:27]} 38. Rxf8+ {[%emt 0:00:34]} Kxf8 {[%emt 0:01:17]} 39. Bc1 {[%emt 0:01:08]} Ra8 {[%emt 0:03:13]} 40. Rf3+ {[%emt 0:01:26]} Kg8 {[%emt 0:00:10]} 41. Kd3 {[%emt 0:00:26]} Rd8 {[%emt 0:01:37]} 42. Ke4 {[%emt 0:00:25]} Rd7 {[%emt 0:00:50]} 43. Be3 {[%emt 0:01:16]} Rd8 {[%emt 0:01:01]} 44. Bf2 {[%emt 0:00:34]} Rf8 {[%emt 0:00:51]} 45. Rxf8+ {[%emt 0:00:51]} Kxf8 {[%emt 0:00:08]} 46. h4 {[%emt 0:00:32]} Kf7 {[%emt 0:00:07]} 47. Kd3 {[%emt 0:00:38]} g6 {[%emt 0:00:39]} 48. h5 {[%emt 0:00:43]} Bg5 {[%emt 0:01:17]} 49. Kc2 {[%emt 0:00:33]} Bf4 {[%emt 0:01:08]} 50. Kb3 {[%emt 0:00:34]} Bg5 {[%emt 0:00:17]} 51. a4 {[%emt 0:00:11]} gxh5 {[%emt 0:00:17]} 52. gxh5 {[%emt 0:00:09]} Ke7 {[%emt 0:00:11]} 53. axb5 {[%emt 0:00:43]} cxb5 {[%emt 0:00:09]} 54. Kc3 {[%emt 0:00:34]} Kd7 {[%emt 0:01:21]} 55. Kd3 {[%emt 0:02:26]} Kc7 {[%emt 0:01:26]} (55... Kc6 $11) 56. Be3 {[%emt 0:00:38]} ({White should try} 56. Be1 $16) 56... Bxe3 {[%emt 0:00:06]} 57. Kxe3 {[%emt 0:00:04]} Kd7 {[%emt 0:00:51]} 58. Ke4 {[%emt 0:01:17]} Kc6 {[%emt 0:00:09]} 59. d5+ {[%emt 0:02:09]} exd5+ {[%emt 0:01:06]} 60. Kd4 {[%emt 0:00:26]} b6 {[%emt 0:00:09]} 61. e6 {[%emt 0:00:11]} Kd6 {[%emt 0:00:08]} 62. e7 $11 {[%emt 0:00:05]} Kxe7 {[%emt 0:00:03]} 63. Kxd5 {[%emt 0:00:05]} Kd7 {[%emt 0:01:39]} 64. Ke5 {[%emt 0:00:17]} Ke7 {[%emt 0:00:05]} 65. Kf5 {[%emt 0:00:13]} Kf7 {[%emt 0:00:05]} 66. Ke5 {[%emt 0:00:08]} 1/2-1/2

[Event "DMP-III LIGA Senior PK 2020"]
[Site "Bystre"]
[Date "2020.07.08"]
[Round "1.17"]
[White "Borukalo, Zdzislaw"]
[Black "Lach, Mateusz"]
[Result "0-1"]
[ECO "C02"]
[WhiteElo "1679"]
[BlackElo "1674"]
[Annotator "NA RC"]
[PlyCount "128"]
[EventDate "2020.07.05"]
[EventType "team-tourn"]
[EventCountry "POL"]
[SourceTitle "playchess.com"]
[Source "ChessBase"]
[SourceQuality "1"]
[TimeControl "5400+30"]

1. e4 {[%emt 0:00:00]} e6 {[%emt 0:00:00]} 2. d4 {[%emt 0:00:00]} d5 {[%emt 0:00:00]} 3. e5 {[%emt 0:00:06]} c5 {[%emt 0:00:00]} 4. c3 {[%emt 0:00:12]} Nc6 {[%emt 0:00:10]} 5. Nf3 {[%emt 0:00:10]} a6 {[%emt 0:00:39]} 6. a3 {[%emt 0:05:10]} c4 {[%emt 0:00:15]} 7. g3 {[%emt 0:02:07]} b5 {[%emt 0:00:17]} 8. Nbd2 {[%emt 0:03:47]} Bd7 {[%emt 0:00:31]} 9. h4 {[%emt 0:12:33]} a5 {[%emt 0:00:18]} 10. Bg2 {[%emt 0:05:08]} h6 {[%emt 0:00:12]} 11. O-O {[%emt 0:04:12]} a4 {[%emt 0:00:55]} 12. Ne1 {[%emt 0:01:25]} Qc7 {[%emt 0:02:41]} 13. Nc2 {[%emt 0:04:07]} O-O-O {[%emt 0:00:39]} 14. f4 {[%emt 0:12:25]} f5 {[%emt 0:01:36]} 15. Nf3 {[%emt 0:08:29]} Be8 {[%emt 0:01:32]} 16. Qe1 {[%emt 0:05:21]} Bh5 {[%emt 0:02:05]} 17. Be3 {[%emt 0:01:15]} Re8 {[%emt 0:00:46]} 18. Nd2 {[%emt 0:01:36]} Be7 {[%emt 0:00:18]} 19. Bf3 {[%emt 0:00:32]} Bf7 {[%emt 0:00:39]} 20. Qe2 {[%emt 0:02:07]} Qd8 {[%emt 0:00:21]} 21. h5 {[%emt 0:03:33]} g5 {[%emt 0:02:05]} 22. hxg6 {[%emt 0:00:12]} Bxg6 {[%emt 0:00:13]} 23. Bh5 {[%emt 0:00:34]} Bxh5 {[%emt 0:00:49]} 24. Qxh5 {[%emt 0:00:08]} Bf8 {[%emt 0:02:53]} 25. Nb4 {[%emt 0:01:47]} Nxb4 {[%emt 0:00:50]} 26. axb4 {[%emt 0:03:22]} Re7 {[%emt 0:00:48]} 27. Kf2 {[%emt 0:01:55]} Qe8 {[%emt 0:00:33]} 28. Qf3 {[%emt 0:02:24]} Rg7 {[%emt 0:00:49]} 29. b3 {[%emt 0:02:24]} cxb3 {[%emt 0:00:13]} 30. Nxb3 {[%emt 0:00:14]} h5 {[%emt 0:01:08]} 31. Rh1 {[%emt 0:04:16]} Rg4 {[%emt 0:00:20]} 32. Nc5 {[%emt 0:03:14]} h4 {[%emt 0:01:24]} 33. gxh4 {[%emt 0:04:00]} Rgxh4 {[%emt 0:00:05]} 34. Rxh4 {[%emt 0:00:44]} Rxh4 {[%emt 0:00:06]} 35. Rh1 {[%emt 0:00:49]} Rxh1 {[%emt 0:00:43]} 36. Qxh1 {[%emt 0:00:10]} Nh6 {[%emt 0:00:30]} 37. Bc1 {[%emt 0:02:28]} Bxc5 {[%emt 0:01:30]} 38. bxc5 {[%emt 0:01:51]} Ng4+ {[%emt 0:01:07]} 39. Kf3 {[%emt 0:00:18]} Qf8 {[%emt 0:02:04]} 40. Qh5 {[%emt 0:01:02]} Kd8 {[%emt 0:01:51]} 41. Qh7 {[%emt 0:00:43]} Qh6 {[%emt 0:00:32]} 42. Qxh6 {[%emt 0:00:50]} Nxh6 {[%emt 0:00:11]} 43. Ba3 {[%emt 0:01:21]} Ng8 {[%emt 0:00:02]} 44. Ke3 {[%emt 0:01:17]} Ne7 {[%emt 0:00:04]} 45. Kf3 {[%emt 0:00:40]} Nc6 {[%emt 0:00:05]} 46. Ke3 {[%emt 0:00:06]} Na5 {[%emt 0:00:14]} 47. Kd3 {[%emt 0:01:44]} Nc4 {[%emt 0:00:03]} 48. Bc1 {[%emt 0:00:26]} Kc7 {[%emt 0:01:08]} 49. Kc2 {[%emt 0:00:22]} Kb7 {[%emt 0:00:14]} 50. Bd2 {[%emt 0:00:47]} Ka6 {[%emt 0:00:04]} 51. Bc1 {[%emt 0:00:28]} Ka7 {[%emt 0:01:35]} 52. Kb1 {[%emt 0:00:11]} Kb7 {[%emt 0:00:16]} 53. Ka2 {[%emt 0:00:32]} Ka6 {[%emt 0:00:20]} 54. Kb1 {[%emt 0:00:53]} Ka5 {[%emt 0:00:11]} 55. Ka2 {[%emt 0:00:24]} b4 {[%emt 0:00:48]} 56. cxb4+ {[%emt 0:00:14]} Kxb4 {[%emt 0:00:52]} 57. c6 {[%emt 0:00:45]} Nb6 {[%emt 0:01:30]} 58. Ba3+ {[%emt 0:00:23]} Kb5 {[%emt 0:02:01]} 59. c7 {[%emt 0:00:46]} Kc6 {[%emt 0:00:17]} 60. Bd6 {[%emt 0:00:24]} Kb7 {[%emt 0:00:28]} 61. Ka3 {[%emt 0:00:24]} Nc4+ {[%emt 0:00:47]} 62. Kxa4 {[%emt 0:00:25]} Nb2+ {[%emt 0:00:47]} 63. Kb5 {[%emt 0:00:36]} Nd3 {[%emt 0:00:13]} 64. c8=Q+ {[%emt 0:01:12]} Kxc8 {[%emt 0:00:45]} 0-1

[Event "DMP-III LIGA Senior PK 2020"]
[Site "Bystre"]
[Date "2020.07.08"]
[Round "1.18"]
[White "Wladyka, Angelika"]
[Black "Krzysztynska, Anna"]
[Result "0-1"]
[ECO "C50"]
[WhiteElo "1601"]
[BlackElo "1857"]
[Annotator "NA RC"]
[PlyCount "96"]
[EventDate "2020.07.05"]
[EventType "team-tourn"]
[EventCountry "POL"]
[SourceTitle "playchess.com"]
[Source "ChessBase"]
[SourceQuality "1"]
[TimeControl "5400+30"]

1. e4 {[%emt 0:00:00]} e5 {[%emt 0:00:00]} 2. Nf3 {[%emt 0:00:00]} Nc6 {[%emt 0:00:00]} 3. Bc4 {[%emt 0:00:19]} Bc5 {[%emt 0:00:37]} 4. d3 {[%emt 0:01:08]} Nf6 {[%emt 0:00:43]} 5. Nc3 {[%emt 0:01:44]} d6 {[%emt 0:00:36]} 6. h3 {[%emt 0:02:48]} O-O {[%emt 0:00:43]} 7. O-O {[%emt 0:00:55]} Be6 {[%emt 0:01:11]} 8. Bb3 {[%emt 0:01:02]} a6 {[%emt 0:05:57] C50: Hungarian Defence and Giuoco Pianissimo.} 9. Bg5 {[%emt 0:09:00]} h6 {[%emt 0:01:29]} 10. Bh4 {[%emt 0:08:28] [#]} g5 $146 {[%emt 0:06:53]} ({Predecessor:} 10... Bxb3 11. axb3 Qe7 12. Nd5 Qe6 13. Nxc7 Qe7 14. Nxa8 Rxa8 15. Nh2 Qe6 16. Bxf6 Qxf6 17. Nf3 Rc8 18. Nh2 Ba7 19. Qf3 {1-0 (29) Lieske,A (1620)-Blauhut,A (1216) Playchess.com INT 2020}) 11. Bg3 {[%emt 0:06:55]} Nh5 {[%emt 0:04:04]} 12. Kh1 {[%emt 0:06:52]} Nf4 13. Bxf4 {[%emt 0:10:10]} gxf4 {[%emt 0:03:22]} 14. Nh2 {[%emt 0:13:52]} Kh7 {[%emt 0:04:54]} 15. Qh5 {[%emt 0:02:57]} Qf6 {[%emt 0:11:04]} 16. Nd5 {[%emt 0:04:22]} Bxd5 {[%emt 0:02:42]} 17. Bxd5 {[%emt 0:00:09]} Qg6 {[%emt 0:01:33]} 18. Qxg6+ {[%emt 0:09:18]} fxg6 {[%emt 0:00:16]} 19. c3 {[%emt 0:00:52]} Rab8 {[%emt 0:02:33]} 20. b4 {[%emt 0:00:55]} Ba7 {[%emt 0:00:51]} 21. a4 {[%emt 0:02:00]} Ne7 {[%emt 0:03:00]} 22. Bb3 {[%emt 0:00:36]} c5 {[%emt 0:06:53]} 23. Rac1 {[%emt 0:05:26]} Rbc8 {[%emt 0:03:45]} 24. Kg1 {[%emt 0:02:19]} b5 {[%emt 0:06:01]} 25. axb5 {[%emt 0:01:06]} axb5 {[%emt 0:00:05]} 26. Ra1 {[%emt 0:00:23]} Bb6 {[%emt 0:04:58]} 27. Ra6 {[%emt 0:00:47]} Rb8 {[%emt 0:02:16]} 28. Nf3 {[%emt 0:01:19]} cxb4 {[%emt 0:00:39]} 29. cxb4 {[%emt 0:00:10]} Nc6 {[%emt 0:00:35]} 30. Rd1 {[%emt 0:02:27]} Nxb4 {[%emt 0:01:25]} 31. Raa1 {[%emt 0:00:16]} Nc6 {[%emt 0:03:51]} 32. Rd2 {[%emt 0:02:30]} Rfc8 {[%emt 0:05:04]} 33. Rc2 {[%emt 0:01:18] [#]} (33. Be6 $17 {was worth a try.}) 33... Nb4 $1 {[%emt 0:02:28]} 34. Rxc8 {[%emt 0:02:12]} Rxc8 {[%emt 0:00:05]} 35. Ne1 {[%emt 0:00:58]} Rc3 {[%emt 0:02:27]} 36. Rb1 {[%emt 0:00:12]} Nxd3 {[%emt 0:00:53]} 37. Nxd3 {[%emt 0:00:17]} Rxd3 {[%emt 0:00:07]} 38. Bd5 {[%emt 0:01:23]} h5 {[%emt 0:02:40]} 39. Kf1 {[%emt 0:00:43]} Rd2 {[%emt 0:00:53]} 40. Rxb5 {[%emt 0:00:20]} Rxf2+ {[%emt 0:00:16]} 41. Ke1 {[%emt 0:00:13]} Be3 {[%emt 0:01:32]} 42. h4 {[%emt 0:01:25]} Rxg2 {[%emt 0:03:29]} 43. Rb8 {[%emt 0:00:08]} (43. Rb7+ $19 Kh6 44. Bg8) 43... Rh2 {[%emt 0:01:55]} 44. Bg8+ {[%emt 0:00:16]} Kg7 {[%emt 0:01:11]} 45. Bd5 {[%emt 0:00:24]} Rxh4 {[%emt 0:00:27]} 46. Rd8 {[%emt 0:00:46]} f3 {[%emt 0:00:41]} 47. Rd7+ {[%emt 0:00:18]} Kh6 $19 {[%emt 0:00:13]} 48. Rxd6 {[%emt 0:00:38]} Rh1# {[%emt 0:00:09]} 0-1

[Event "DMP-III LIGA Senior PK 2020"]
[Site "Bystre"]
[Date "2020.07.08"]
[Round "1.19"]
[White "Kopczyk, Daniel"]
[Black "Czarnecki, Wojciech"]
[Result "*"]
[ECO "A80"]
[WhiteElo "2137"]
[BlackElo "1965"]
[Annotator "RC"]
[PlyCount "27"]
[EventDate "2020.07.05"]
[EventType "team-tourn"]
[EventCountry "POL"]
[SourceTitle "playchess.com"]
[Source "ChessBase"]
[SourceQuality "1"]
[TimeControl "5400+30"]

1. d4 {[%emt 0:00:00]} f5 {[%emt 0:00:00]} 2. Nc3 {[%emt 0:00:18]} Nf6 {[%emt 0:00:00]} 3. Bg5 {[%emt 0:00:05]} e6 {[%emt 0:00:48]} 4. e4 {[%emt 0:02:03]} fxe4 {[%emt 0:00:31]} 5. Nxe4 {[%emt 0:00:10]} Be7 {[%emt 0:00:12]} 6. Bxf6 {[%emt 0:00:57]} Bxf6 {[%emt 0:00:16]} 7. Nf3 {[%emt 0:00:17]} O-O {[%emt 0:02:23]} 8. Bd3 {[%emt 0:00:44]} b6 {[%emt 0:02:11]} 9. Qe2 {[%emt 0:01:40]} Bb7 {[%emt 0:01:11]} 10. O-O {[%emt 0:05:16]} Nc6 {[%emt 0:10:02]} 11. c3 {[%emt 0:01:24]} Qe7 {[%emt 0:03:46]} 12. Rfe1 {[%emt 0:01:28]} Rae8 {[%emt 0:05:32]} 13. Rad1 {[%emt 0:00:38]} Kh8 {[%emt 0:03:00]} 14. Bc2 {[%emt 0:02:07]} *

[Event "DMP-III LIGA Senior PK 2020"]
[Site "Bystre"]
[Date "2020.07.08"]
[Round "1.22"]
[White "Biesiadecki, Adam"]
[Black "Szaro, Mariusz"]
[Result "1/2-1/2"]
[ECO "A84"]
[WhiteElo "1539"]
[BlackElo "1559"]
[Annotator "NA RC"]
[PlyCount "94"]
[EventDate "2020.07.05"]
[EventType "team-tourn"]
[EventCountry "POL"]
[SourceTitle "playchess.com"]
[Source "ChessBase"]
[SourceQuality "1"]
[TimeControl "5400+30"]

1. d4 e6 2. c4 f5 3. e4 fxe4 4. Nc3 Nf6 5. Bg5 Bb4 6. Nge2 O-O 7. d5 e5 8. a3 Be7 9. Bxf6 Bxf6 10. Nxe4 d6 11. N2g3 a5 12. Bd3 Qe8 13. Qc2 Qf7 14. Nxf6+ gxf6 15. Nf5 Kh8 16. O-O-O Na6 17. f4 Nc5 18. Rhf1 Nxd3+ 19. Qxd3 Bxf5 20. Qxf5 Qg6 21. Qh3 Qe4 22. Qd3 Qxd3 23. Rxd3 e4 24. Rb3 b6 25. f5 Rae8 26. Re3 Rg8 27. Rf2 Re5 28. h3 h5 29. Rfe2 Rg5 30. Rxe4 Rgxf5 31. g4 hxg4 32. hxg4 Rxe4 33. Rxe4 Re5 34. Rf4 Kg7 35. Kd2 Kg6 36. b4 axb4 37. axb4 Kg5 38. Rd4 Kh4 39. Kc2 Rg5 40. Rf4 Rxg4 41. Rxf6 Rxc4+ 42. Kb3 b5 43. Rg6 Rd4 44. Rg7 Rxd5 45. Rxc7 Kg4 46. Rf7 Rd3+ 47. Kc2 Rd4 1/2-1/2

[Event "DMP-III LIGA Senior PK 2020"]
[Site "Bystre"]
[Date "2020.07.08"]
[Round "1.24"]
[White "Krzyzanowska-Zadlo, Lidia"]
[Black "Kruczek, Aleksandra"]
[Result "1-0"]
[ECO "C65"]
[WhiteElo "1801"]
[BlackElo "1038"]
[Annotator "NA RC"]
[PlyCount "111"]
[EventDate "2020.07.05"]
[EventType "team-tourn"]
[EventCountry "POL"]
[SourceTitle "playchess.com"]
[Source "ChessBase"]
[SourceQuality "1"]
[TimeControl "5400+30"]

1. e4 {[%emt 0:00:00]} e5 {[%emt 0:00:00]} 2. Nf3 {[%emt 0:00:00]} Nc6 {[%emt 0:00:02]} 3. Bb5 {[%emt 0:00:00]} Nf6 {[%emt 0:00:32]} 4. O-O {[%emt 0:00:17]} Be7 {[%emt 0:02:27]} 5. d3 {[%emt 0:05:29]} O-O {[%emt 0:01:51]} 6. c3 {[%emt 0:01:34]} a6 {[%emt 0:12:48]} 7. Bxc6 {[%emt 0:02:48]} dxc6 {[%emt 0:02:49]} 8. Nxe5 {[%emt 0:00:18]} Qd6 {[%emt 0:01:37]} 9. Nc4 {[%emt 0:01:10]} Qd8 {[%emt 0:10:14]} 10. Qe2 {[%emt 0:01:18]} b5 {[%emt 0:05:21]} 11. Ne3 {[%emt 0:04:15]} c5 {[%emt 0:06:04]} 12. Nd2 {[%emt 0:01:56]} Bb7 {[%emt 0:02:56]} 13. Nf5 {[%emt 0:05:10]} Qd7 {[%emt 0:07:41]} 14. f3 {[%emt 0:06:56]} Rfe8 {[%emt 0:08:44]} 15. Nb3 {[%emt 0:00:51]} Rad8 {[%emt 0:02:58]} 16. Nxe7+ {[%emt 0:00:56]} Qxe7 {[%emt 0:01:48]} 17. Be3 {[%emt 0:01:09]} c4 {[%emt 0:04:51]} 18. dxc4 {[%emt 0:01:01]} bxc4 {[%emt 0:00:21]} 19. Qxc4 {[%emt 0:01:40]} Ra8 {[%emt 0:08:44]} 20. Rad1 {[%emt 0:01:44]} Red8 {[%emt 0:01:42]} 21. Bg5 {[%emt 0:02:14]} Rxd1 {[%emt 0:01:55]} 22. Rxd1 {[%emt 0:00:10]} Rd8 {[%emt 0:00:27]} 23. Rd4 {[%emt 0:01:22]} h6 {[%emt 0:03:24]} 24. Rxd8+ {[%emt 0:01:33]} Qxd8 {[%emt 0:00:25]} 25. Bxf6 {[%emt 0:00:15]} Qd1+ {[%emt 0:02:16]} 26. Kf2 {[%emt 0:01:25]} Qc2+ {[%emt 0:01:26]} 27. Qe2 {[%emt 0:00:46]} Qxe2+ {[%emt 0:00:24]} 28. Kxe2 {[%emt 0:00:06]} gxf6 {[%emt 0:00:04]} 29. Nc5 {[%emt 0:00:52]} Bc8 {[%emt 0:00:27]} 30. Ke3 {[%emt 0:01:55]} Kf8 {[%emt 0:00:32]} 31. b4 {[%emt 0:00:38]} Ke7 {[%emt 0:00:32]} 32. Kd4 {[%emt 0:00:11]} Kd6 {[%emt 0:00:46]} 33. a4 {[%emt 0:01:46]} c6 {[%emt 0:00:35]} 34. a5 {[%emt 0:00:34]} h5 {[%emt 0:00:30]} 35. h4 {[%emt 0:00:44]} Kc7 {[%emt 0:00:32]} 36. Nd3 {[%emt 0:00:40]} Kd6 {[%emt 0:01:05]} 37. Nf4 {[%emt 0:00:50]} f5 {[%emt 0:01:19]} 38. e5+ {[%emt 0:00:21]} Ke7 {[%emt 0:00:24]} 39. Nxh5 {[%emt 0:00:26]} Kf8 {[%emt 0:00:29]} 40. Kc5 {[%emt 0:00:18]} Bb7 {[%emt 0:01:14]} 41. Kb6 {[%emt 0:00:14]} Bc8 {[%emt 0:00:20]} 42. Kxc6 {[%emt 0:00:33]} Ke7 {[%emt 0:00:50]} 43. Nf4 {[%emt 0:00:31]} Bd7+ {[%emt 0:01:18]} 44. Kc5 {[%emt 0:01:12]} f6 {[%emt 0:00:40]} 45. e6 {[%emt 0:00:19]} Bxe6 {[%emt 0:00:10]} 46. Nxe6 {[%emt 0:00:10]} Kxe6 {[%emt 0:00:05]} 47. f4 {[%emt 0:00:15]} Kf7 {[%emt 0:00:17]} 48. b5 {[%emt 0:00:05]} axb5 {[%emt 0:00:28]} 49. a6 {[%emt 0:00:05]} b4 {[%emt 0:00:18]} 50. cxb4 {[%emt 0:00:07]} Ke7 {[%emt 0:00:11]} 51. a7 {[%emt 0:00:09]} Kd7 {[%emt 0:00:19]} 52. a8=Q {[%emt 0:00:09]} Ke7 {[%emt 0:00:18]} 53. Qg8 {[%emt 0:00:28]} Kd7 {[%emt 0:00:16]} 54. Qf7+ {[%emt 0:00:06]} Kd8 {[%emt 0:00:24]} 55. Kc6 {[%emt 0:00:08]} Kc8 {[%emt 0:00:22]} 56. Qc7# {[%emt 0:00:00]} 1-0

[Event "DMP-III LIGA Senior PK 2020"]
[Site "Bystre"]
[Date "2020.07.08"]
[Round "1.25"]
[White "Zgoda, Damian"]
[Black "Miasik, Adrian"]
[Result "0-1"]
[ECO "D02"]
[WhiteElo "1672"]
[BlackElo "1881"]
[Annotator "NA RC"]
[PlyCount "42"]
[EventDate "2020.07.05"]
[EventType "team-tourn"]
[EventCountry "POL"]
[SourceTitle "playchess.com"]
[Source "ChessBase"]
[SourceQuality "1"]
[TimeControl "5400+30"]

1. d4 {[%emt 0:00:00]} d5 {[%emt 0:00:00]} 2. Nf3 {[%emt 0:00:02]} e6 {[%emt 0:00:00]} 3. c4 {[%emt 0:00:31]} c5 {[%emt 0:00:24]} 4. g3 Nc6 5. Bg2 {[%emt 0:02:54]} Nf6 {[%emt 0:08:02]} 6. O-O {[%emt 0:01:19]} Be7 {[%emt 0:03:56]} 7. cxd5 {[%emt 0:05:13]} exd5 {[%emt 0:02:44]} 8. dxc5 {[%emt 0:03:59]} Bxc5 {[%emt 0:03:23]} 9. Qc2 {[%emt 0:02:15]} Bb6 {[%emt 0:01:11]} 10. Nc3 {[%emt 0:02:32]} O-O {[%emt 0:11:46]} 11. Bg5 {[%emt 0:02:15]} Be6 {[%emt 0:01:46]} 12. Rfd1 {[%emt 0:04:07]} h6 {[%emt 0:02:50]} 13. Bf4 {[%emt 0:16:36]} Rc8 {[%emt 0:15:12]} 14. h3 {[%emt 0:08:44]} Qe7 {[%emt 0:04:18]} 15. Ne5 {[%emt 0:08:58]} Nxe5 {[%emt 0:09:35]} 16. Bxe5 {[%emt 0:00:22]} Bxh3 {[%emt 0:09:23]} 17. Bxh3 {[%emt 0:06:12]} Qxe5 {[%emt 0:00:37]} 18. Bxc8 {[%emt 0:00:55]} Qxg3+ {[%emt 0:00:24]} 19. Kh1 {[%emt 0:00:23]} Qh4+ {[%emt 0:01:27]} 20. Kg2 {[%emt 0:00:54]} Qxf2+ {[%emt 0:00:10]} 21. Kh3 {[%emt 0:01:14]} Bc7 {[%emt 0:00:19]} 0-1

[Event "DMP-III LIGA Senior PK 2020"]
[Site "Bystre"]
[Date "2020.07.08"]
[Round "1.28"]
[White "Ziemniak, Piotr"]
[Black "Mikula, Michal"]
[Result "*"]
[ECO "B27"]
[WhiteElo "1791"]
[BlackElo "1858"]
[Annotator "NA RC"]
[PlyCount "22"]
[EventDate "2020.07.05"]
[EventType "team-tourn"]
[EventCountry "POL"]
[SourceTitle "playchess.com"]
[Source "ChessBase"]
[SourceQuality "1"]
[TimeControl "5400+30"]

1. e4 {[%emt 0:00:00]} c5 {[%emt 0:00:08]} 2. Nf3 {[%emt 0:00:00]} g6 {[%emt 0:00:10]} 3. d4 {[%emt 0:00:00]} cxd4 {[%emt 0:00:08]} 4. Nxd4 {[%emt 0:00:00]} Bg7 {[%emt 0:00:22]} 5. Be3 {[%emt 0:01:22]} Nf6 {[%emt 0:01:01]} 6. Nc3 {[%emt 0:00:07]} Nc6 {[%emt 0:00:33]} 7. f3 {[%emt 0:01:38]} O-O {[%emt 0:00:24]} 8. Qd2 {[%emt 0:00:09]} d5 {[%emt 0:02:30]} 9. Nxc6 {[%emt 0:07:12]} bxc6 {[%emt 0:00:14]} 10. O-O-O {[%emt 0:03:18]} Qa5 {[%emt 0:10:27]} 11. a3 {[%emt 0:07:24]} Rb8 {[%emt 0:07:49]} *

[Event "DMP-III LIGA Senior PK 2020"]
[Site "Bystre"]
[Date "2020.07.08"]
[Round "1.29"]
[White "Sygulski, Piotr"]
[Black "Wozniak, Grzegorz"]
[Result "1-0"]
[ECO "B73"]
[WhiteElo "1652"]
[BlackElo "1608"]
[Annotator "NA RC"]
[PlyCount "65"]
[EventDate "2020.07.05"]
[EventType "team-tourn"]
[EventCountry "POL"]
[SourceTitle "playchess.com"]
[Source "ChessBase"]
[SourceQuality "1"]
[TimeControl "5400+30"]

1. e4 {[%emt 0:00:00]} c5 {[%emt 0:00:25]} 2. Ne2 {[%emt 0:00:00]} Nc6 {[%emt 0:00:16]} 3. d4 {[%emt 0:00:08]} cxd4 {[%emt 0:00:34]} 4. Nxd4 {[%emt 0:00:06]} d6 {[%emt 0:02:18]} 5. Be2 {[%emt 0:00:48]} Nf6 {[%emt 0:00:24]} 6. Nc3 {[%emt 0:00:53]} g6 {[%emt 0:00:20]} 7. Be3 {[%emt 0:01:56]} Bg7 {[%emt 0:01:12]} 8. O-O {[%emt 0:02:41]} O-O {[%emt 0:00:05]} 9. Kh1 {[%emt 0:00:37]} a6 {[%emt 0:07:03]} 10. f4 {[%emt 0:04:25]} Nxd4 {[%emt 0:10:47]} 11. Bxd4 {[%emt 0:00:31]} b5 {[%emt 0:00:20]} 12. Bf3 {[%emt 0:04:37]} Bb7 {[%emt 0:00:24]} 13. a3 {[%emt 0:06:58]} Rc8 {[%emt 0:08:52]} 14. Qe1 {[%emt 0:04:32]} Qd7 {[%emt 0:05:41]} 15. Rd1 {[%emt 0:02:20]} Rfe8 {[%emt 0:03:10]} 16. Qh4 {[%emt 0:10:08]} Bc6 {[%emt 0:09:31]} 17. f5 {[%emt 0:09:12]} e5 {[%emt 0:03:28]} 18. Be3 {[%emt 0:03:58]} gxf5 {[%emt 0:09:07]} 19. exf5 {[%emt 0:03:46]} Bxf3 {[%emt 0:07:35]} 20. Rxf3 {[%emt 0:00:35]} Rc4 {[%emt 0:03:37]} 21. Qh3 {[%emt 0:02:00]} d5 {[%emt 0:11:27]} 22. Bh6 {[%emt 0:02:23]} Bxh6 {[%emt 0:05:59]} 23. Qxh6 {[%emt 0:00:42]} Ng4 {[%emt 0:00:19]} 24. Qg5+ {[%emt 0:04:22]} Kh8 {[%emt 0:01:06]} 25. Rxd5 {[%emt 0:01:23]} f6 {[%emt 0:02:31]} 26. Qh5 {[%emt 0:01:42]} Qe7 {[%emt 0:00:40]} 27. b3 {[%emt 0:01:32]} Rd4 {[%emt 0:00:23]} 28. h3 {[%emt 0:02:46]} Rg8 {[%emt 0:01:32]} 29. hxg4 {[%emt 0:01:45]} Rdxg4 {[%emt 0:00:07]} 30. Rf2 {[%emt 0:03:04]} Qxa3 {[%emt 0:01:52]} 31. Rd7 {[%emt 0:00:11]} Qc1+ {[%emt 0:01:07]} 32. Nd1 {[%emt 0:00:13]} h6 {[%emt 0:01:05]} 33. Rfd2 {[%emt 0:00:07]} 1-0